[Event "Titled Tuesday Blitz May 9 Late 2023"]
[White "Hollan, Petr"]
[Black "Leschinsky, Gary"]
[WhiteFideId "360945"]
[BlackFideId "30951321"]
[WhiteElo "2254"]
[BlackElo "1855"]
[Result "0-1"]
[Round "07"]
[TimeControl "180+2"]
[Date "2023.05.09"]
[WhiteClock "0:00:00"]
[BlackClock "0:00:08"]

1. e4 {[%clk 0:03:00]}  c5 {[%clk 0:02:55]} 2. Nf3 {[%clk 0:03:00]}  e6 {[%clk 0:02:54]} 3. d4 {[%clk 0:03:00]}  cxd4 {[%clk 0:02:55]} 4. Nxd4 {[%clk 0:03:00]}  a6 {[%clk 0:02:55]} 5. Bd3 {[%clk 0:03:00]}  Ne7 {[%clk 0:02:55]} 6. O-O {[%clk 0:02:59]}  Nbc6 {[%clk 0:02:55]} 7. Nxc6 {[%clk 0:02:56]}  Nxc6 {[%clk 0:02:54]} 8. c4 {[%clk 0:02:57]}  Be7 {[%clk 0:02:53]} 9. Nc3 {[%clk 0:02:58]}  O-O {[%clk 0:02:53]} 10. Be3 {[%clk 0:02:59]}  d6 {[%clk 0:02:53]} 11. f4 {[%clk 0:02:59]}  Rb8 {[%clk 0:02:53]} 12. Kh1 {[%clk 0:02:58]}  Bf6 {[%clk 0:02:52]} 13. Rc1 {[%clk 0:02:57]}  Bd7 {[%clk 0:02:50]} 14. b3 {[%clk 0:02:57]}  Nb4 {[%clk 0:02:49]} 15. Bb1 {[%clk 0:02:56]}  b5 {[%clk 0:02:50]} 16. Qxd6 {[%clk 0:02:50]}  Be7 {[%clk 0:02:48]} 17. Qd2 {[%clk 0:02:43]}  bxc4 {[%clk 0:02:47]} 18. bxc4 {[%clk 0:02:44]}  Bc6 {[%clk 0:02:47]} 19. Rfd1 {[%clk 0:02:41]}  Qc8 {[%clk 0:02:46]} 20. Nd5 {[%clk 0:02:39]}  exd5 {[%clk 0:02:42]} 21. cxd5 {[%clk 0:02:39]}  Rd8 {[%clk 0:02:37]} 22. Qf2 {[%clk 0:02:30]}  Qd7 {[%clk 0:02:35]} 23. a3 {[%clk 0:02:27]}  Ba4 {[%clk 0:02:34]} 24. Re1 {[%clk 0:02:17]}  Nxd5 {[%clk 0:02:33]} 25. exd5 {[%clk 0:02:17]}  Bf6 {[%clk 0:02:29]} 26. Bb6 {[%clk 0:02:11]}  Rdc8 {[%clk 0:02:27]} 27. Rxc8+ {[%clk 0:02:08]}  Rxc8 {[%clk 0:02:28]} 28. Be4 {[%clk 0:02:04]}  Re8 {[%clk 0:02:16]} 29. Bf3 {[%clk 0:02:02]}  Rxe1+ {[%clk 0:01:32]} 30. Qxe1 {[%clk 0:02:03]}  g6 {[%clk 0:01:33]} 31. Qe4 {[%clk 0:01:53]}  Bb3 {[%clk 0:01:28]} 32. Qd3 {[%clk 0:01:49]}  Ba2 {[%clk 0:01:14]} 33. Qxa6 {[%clk 0:01:45]}  Bxd5 {[%clk 0:01:14]} 34. Qd3 {[%clk 0:01:32]}  Bc6 {[%clk 0:01:10]} 35. Qxd7 {[%clk 0:01:28]}  Bxd7 {[%clk 0:01:07]} 36. Bc5 {[%clk 0:01:28]}  Ba4 {[%clk 0:01:06]} 37. Kg1 {[%clk 0:01:27]}  h5 {[%clk 0:01:06]} 38. Kf2 {[%clk 0:01:27]}  Bd8 {[%clk 0:01:06]} 39. Ke3 {[%clk 0:01:27]}  f6 {[%clk 0:01:04]} 40. Kd4 {[%clk 0:01:25]}  Bc7 {[%clk 0:01:02]} 41. g3 {[%clk 0:01:25]}  h4 {[%clk 0:00:56]} 42. Kd5 {[%clk 0:01:09]}  hxg3 {[%clk 0:00:54]} 43. hxg3 {[%clk 0:01:09]}  g5 {[%clk 0:00:55]} 44. Bd6 {[%clk 0:01:09]}  Bb6 {[%clk 0:00:49]} 45. Ke6 {[%clk 0:01:08]}  Bd4 {[%clk 0:00:43]} 46. Be7 {[%clk 0:01:05]}  gxf4 {[%clk 0:00:34]} 47. gxf4 {[%clk 0:01:04]}  Kg7 {[%clk 0:00:34]} 48. Bd5 {[%clk 0:01:03]}  Be8 {[%clk 0:00:32]} 49. f5 {[%clk 0:00:57]}  Bb2 {[%clk 0:00:32]} 50. Bb4 {[%clk 0:00:52]}  Be5 {[%clk 0:00:18]} 51. Bb3 {[%clk 0:00:52]}  Bf7+ {[%clk 0:00:18]} 52. Ke7 {[%clk 0:00:49]}  Bxb3 {[%clk 0:00:19]} 53. Bc5 {[%clk 0:00:48]}  Bc2 {[%clk 0:00:19]} 54. Ke6 {[%clk 0:00:47]}  Kh6 {[%clk 0:00:18]} 55. Kd5 {[%clk 0:00:15]}  Bxf5 {[%clk 0:00:08]} 56. a4 {[%clk 0:00:15]}  Bd3 {[%clk 0:00:08]} 57. a5 {[%clk 0:00:14]}  Kg6 {[%clk 0:00:08]} 58. Kc6 {[%clk 0:00:11]}  Bc3 {[%clk 0:00:09]} 59. Kb6 {[%clk 0:00:11]}  f5 {[%clk 0:00:09]} 60. a6 {[%clk 0:00:11]}  Be4 {[%clk 0:00:08]} 61. a7 {[%clk 0:00:11]}  Be5 {[%clk 0:00:08]} 62. Kb5 {[%clk 0:00:00]}  f4 {[%clk 0:00:08]} 0-1


[Site "https://www.chess.com"]

[Event "Titled Tuesday Blitz May 9 Late 2023"]
[White "micke12a"]
[Black "Phillips, Rene"]
[BlackFideId "2056275"]
[WhiteElo "2365"]
[BlackElo "2197"]
[Result "1-0"]
[Round "07"]
[TimeControl "180+2"]
[Date "2023.05.09"]
[WhiteClock "0:00:41"]
[BlackClock "0:00:00"]

1. d4 {[%clk 0:02:56]}  Nc6 {[%clk 0:02:59]} 2. Nc3 {[%clk 0:02:55]}  e5 {[%clk 0:02:52]} 3. d5 {[%clk 0:02:54]}  Nce7 {[%clk 0:02:53]} 4. e4 {[%clk 0:02:55]}  Nf6 {[%clk 0:02:53]} 5. g3 {[%clk 0:02:54]}  Ng6 {[%clk 0:02:52]} 6. Bg2 {[%clk 0:02:54]}  Bb4 {[%clk 0:02:52]} 7. Ne2 {[%clk 0:02:53]}  O-O {[%clk 0:02:51]} 8. O-O {[%clk 0:02:53]}  Bxc3 {[%clk 0:02:48]} 9. Nxc3 {[%clk 0:02:53]}  d6 {[%clk 0:02:49]} 10. f4 {[%clk 0:02:52]}  exf4 {[%clk 0:02:44]} 11. gxf4 {[%clk 0:02:52]}  Bg4 {[%clk 0:02:37]} 12. Bf3 {[%clk 0:02:52]}  Qd7 {[%clk 0:02:36]} 13. f5 {[%clk 0:02:47]}  Bxf3 {[%clk 0:02:36]} 14. Qxf3 {[%clk 0:02:47]}  Ne5 {[%clk 0:02:34]} 15. Qg3 {[%clk 0:02:47]}  Nh5 {[%clk 0:02:30]} 16. Qh4 {[%clk 0:02:43]}  g6 {[%clk 0:02:29]} 17. Kh1 {[%clk 0:02:29]}  Kh8 {[%clk 0:02:04]} 18. Bg5 {[%clk 0:02:16]}  Rae8 {[%clk 0:01:19]} 19. Rg1 {[%clk 0:02:08]}  f6 {[%clk 0:01:03]} 20. Bh6 {[%clk 0:01:56]}  Nf3 {[%clk 0:00:59]} 21. Qf2 {[%clk 0:01:56]}  Nxg1 {[%clk 0:00:58]} 22. Bxf8 {[%clk 0:01:56]}  Nh3 {[%clk 0:00:53]} 23. Qh4 {[%clk 0:01:51]}  Rxf8 {[%clk 0:00:33]} 24. Qxh3 {[%clk 0:01:50]}  Ng7 {[%clk 0:00:28]} 25. Rf1 {[%clk 0:01:44]}  gxf5 {[%clk 0:00:26]} 26. exf5 {[%clk 0:01:44]}  Qe7 {[%clk 0:00:23]} 27. Qf3 {[%clk 0:01:27]}  Qe5 {[%clk 0:00:22]} 28. Nb5 {[%clk 0:00:53]}  Rf7 {[%clk 0:00:21]} 29. c3 {[%clk 0:00:50]}  a6 {[%clk 0:00:19]} 30. Nd4 {[%clk 0:00:50]}  c5 {[%clk 0:00:04]} 31. dxc6 {[%clk 0:00:46]}  bxc6 {[%clk 0:00:05]} 32. Nxc6 {[%clk 0:00:44]}  Qb5 {[%clk 0:00:04]} 33. Nd4 {[%clk 0:00:42]}  Qxb2 {[%clk 0:00:00]} 34. Qa8+ {[%clk 0:00:41]} 1-0


[Site "https://www.chess.com"]

[Event "Titled Tuesday Blitz May 9 Late 2023"]
[White "Benaddi, Mouhcine"]
[Black "Gerbelli Neto, Eduardo"]
[WhiteFideId "9001050"]
[BlackFideId "2103281"]
[WhiteElo "2036"]
[BlackElo "2178"]
[Result "1-0"]
[Round "07"]
[TimeControl "180+2"]
[Date "2023.05.09"]
[WhiteClock "0:01:44"]
[BlackClock "0:01:05"]

1. Nf3 {[%clk 0:02:52]}  Nf6 {[%clk 0:02:59]} 2. g3 {[%clk 0:02:52]}  g6 {[%clk 0:02:59]} 3. Bg2 {[%clk 0:02:53]}  Bg7 {[%clk 0:03:00]} 4. O-O {[%clk 0:02:53]}  d5 {[%clk 0:03:01]} 5. d4 {[%clk 0:02:54]}  O-O {[%clk 0:03:00]} 6. c4 {[%clk 0:02:55]}  c6 {[%clk 0:03:00]} 7. cxd5 {[%clk 0:02:55]}  cxd5 {[%clk 0:03:01]} 8. Nc3 {[%clk 0:02:56]}  Nc6 {[%clk 0:03:00]} 9. Ne5 {[%clk 0:02:56]}  e6 {[%clk 0:02:48]} 10. Nxc6 {[%clk 0:02:55]}  bxc6 {[%clk 0:02:48]} 11. Bf4 {[%clk 0:02:56]}  Ba6 {[%clk 0:02:43]} 12. Be5 {[%clk 0:02:56]}  Qb6 {[%clk 0:02:36]} 13. Na4 {[%clk 0:02:55]}  Qb5 {[%clk 0:02:33]} 14. Re1 {[%clk 0:02:53]}  Nd7 {[%clk 0:02:30]} 15. Bxg7 {[%clk 0:02:52]}  Kxg7 {[%clk 0:02:31]} 16. e4 {[%clk 0:02:50]}  Rab8 {[%clk 0:02:21]} 17. b3 {[%clk 0:02:47]}  Qb4 {[%clk 0:02:13]} 18. Rc1 {[%clk 0:02:42]}  Rfc8 {[%clk 0:02:10]} 19. Nc5 {[%clk 0:02:19]}  Nxc5 {[%clk 0:02:07]} 20. Rxc5 {[%clk 0:02:19]}  Rb5 {[%clk 0:01:58]} 21. Rc2 {[%clk 0:02:08]}  Rbb8 {[%clk 0:01:45]} 22. Rc5 {[%clk 0:01:57]}  Qa3 {[%clk 0:01:25]} 23. Qd2 {[%clk 0:01:53]}  Rb5 {[%clk 0:01:18]} 24. Rec1 {[%clk 0:01:48]}  Ra5 {[%clk 0:01:05]} 25. Qxa5 {[%clk 0:01:44]} 1-0


[Site "https://www.chess.com"]

[Event "Titled Tuesday Blitz May 9 Late 2023"]
[White "Torres Dominguez, David"]
[Black "Shapiro, Daniel"]
[WhiteFideId "2220857"]
[BlackFideId "2001780"]
[WhiteElo "1999"]
[BlackElo "2347"]
[Result "0-1"]
[Round "07"]
[TimeControl "180+2"]
[Date "2023.05.09"]
[WhiteClock "0:00:20"]
[BlackClock "0:00:28"]

1. e4 {[%clk 0:03:00]}  c5 {[%clk 0:02:58]} 2. Nc3 {[%clk 0:03:00]}  a6 {[%clk 0:02:57]} 3. Nf3 {[%clk 0:02:59]}  b5 {[%clk 0:02:56]} 4. d4 {[%clk 0:02:58]}  cxd4 {[%clk 0:02:56]} 5. Nxd4 {[%clk 0:02:58]}  e6 {[%clk 0:02:56]} 6. Bd3 {[%clk 0:02:58]}  Bb7 {[%clk 0:02:52]} 7. O-O {[%clk 0:02:57]}  Qb6 {[%clk 0:02:52]} 8. Be3 {[%clk 0:02:55]}  Qc7 {[%clk 0:02:51]} 9. a3 {[%clk 0:02:49]}  Nf6 {[%clk 0:02:51]} 10. h3 {[%clk 0:02:33]}  d6 {[%clk 0:02:49]} 11. f4 {[%clk 0:02:27]}  Nbd7 {[%clk 0:02:45]} 12. Qe1 {[%clk 0:02:26]}  Be7 {[%clk 0:02:42]} 13. Qg3 {[%clk 0:02:24]}  O-O {[%clk 0:02:30]} 14. Rae1 {[%clk 0:02:20]}  Kh8 {[%clk 0:02:24]} 15. Nf3 {[%clk 0:01:59]}  Nc5 {[%clk 0:02:16]} 16. e5 {[%clk 0:01:55]}  Nfe4 {[%clk 0:02:12]} 17. Nxe4 {[%clk 0:01:53]}  Nxe4 {[%clk 0:02:11]} 18. Qg4 {[%clk 0:01:44]}  g6 {[%clk 0:02:03]} 19. Bc1 {[%clk 0:01:31]}  Nc5 {[%clk 0:01:54]} 20. Ng5 {[%clk 0:01:04]}  Nxd3 {[%clk 0:01:26]} 21. cxd3 {[%clk 0:01:04]}  Qc6 {[%clk 0:01:07]} 22. Ne4 {[%clk 0:01:02]}  Qd5 {[%clk 0:00:55]} 23. exd6 {[%clk 0:00:53]}  Bxd6 {[%clk 0:00:50]} 24. Nxd6 {[%clk 0:00:52]}  Qxd6 {[%clk 0:00:50]} 25. b4 {[%clk 0:00:45]}  Qxd3 {[%clk 0:00:48]} 26. Bb2+ {[%clk 0:00:44]}  Kg8 {[%clk 0:00:30]} 27. Qg5 {[%clk 0:00:25]}  Qd5 {[%clk 0:00:29]} 28. Qh6 {[%clk 0:00:20]}  Qxg2# {[%clk 0:00:28]} 0-1


[Site "https://www.chess.com"]

[Event "Titled Tuesday Blitz May 9 Late 2023"]
[White "Fathy, Elameir"]
[Black "Panico, Nick"]
[WhiteFideId "10600396"]
[BlackFideId "2026724"]
[WhiteElo "2311"]
[BlackElo "1982"]
[Result "1-0"]
[Round "07"]
[TimeControl "180+2"]
[Date "2023.05.09"]
[WhiteClock "0:01:17"]
[BlackClock "0:02:09"]

1. d4 {[%clk 0:02:39]}  f5 {[%clk 0:02:58]} 2. c4 {[%clk 0:02:37]}  Nf6 {[%clk 0:02:58]} 3. g3 {[%clk 0:02:36]}  g6 {[%clk 0:02:57]} 4. Bg2 {[%clk 0:02:35]}  Bg7 {[%clk 0:02:58]} 5. Nf3 {[%clk 0:02:35]}  O-O {[%clk 0:02:59]} 6. O-O {[%clk 0:02:36]}  d6 {[%clk 0:02:59]} 7. Nc3 {[%clk 0:02:35]}  Nc6 {[%clk 0:03:00]} 8. d5 {[%clk 0:02:24]}  Ne5 {[%clk 0:03:00]} 9. Nxe5 {[%clk 0:02:24]}  dxe5 {[%clk 0:03:01]} 10. Qb3 {[%clk 0:02:24]}  h6 {[%clk 0:02:59]} 11. c5 {[%clk 0:02:23]}  Kh8 {[%clk 0:03:00]} 12. Rd1 {[%clk 0:02:22]}  g5 {[%clk 0:02:56]} 13. Bd2 {[%clk 0:02:03]}  a6 {[%clk 0:02:54]} 14. Na4 {[%clk 0:02:00]}  Qe8 {[%clk 0:02:50]} 15. Ba5 {[%clk 0:01:58]}  Bd7 {[%clk 0:02:51]} 16. Nc3 {[%clk 0:01:55]}  b6 {[%clk 0:02:46]} 17. cxb6 {[%clk 0:01:50]}  cxb6 {[%clk 0:02:46]} 18. Qxb6 {[%clk 0:01:50]}  e4 {[%clk 0:02:43]} 19. d6 {[%clk 0:01:38]}  exd6 {[%clk 0:02:32]} 20. Nd5 {[%clk 0:01:26]}  Bb5 {[%clk 0:02:23]} 21. Nc7 {[%clk 0:01:19]}  Qb8 {[%clk 0:02:10]} 22. Nxa8 {[%clk 0:01:17]}  Qxb6 {[%clk 0:02:09]} 23. Nxb6 {[%clk 0:01:17]} 1-0


[Site "https://www.chess.com"]

[Event "Titled Tuesday Blitz May 9 Late 2023"]
[White "lluiss"]
[Black "Chemin, Justo Reinaldo"]
[BlackFideId "2101580"]
[WhiteElo "2283"]
[BlackElo "1940"]
[Result "1-0"]
[Round "07"]
[TimeControl "180+2"]
[Date "2023.05.09"]
[WhiteClock "0:00:16"]
[BlackClock "0:00:00"]

1. Nf3 {[%clk 0:03:00]}  e6 {[%clk 0:02:59]} 2. c4 {[%clk 0:02:59]}  d5 {[%clk 0:02:59]} 3. cxd5 {[%clk 0:02:58]}  exd5 {[%clk 0:02:58]} 4. d4 {[%clk 0:02:58]}  Bd6 {[%clk 0:02:57]} 5. Nc3 {[%clk 0:02:57]}  c6 {[%clk 0:02:57]} 6. Bg5 {[%clk 0:02:54]}  Ne7 {[%clk 0:02:56]} 7. e3 {[%clk 0:02:54]}  Qb6 {[%clk 0:02:53]} 8. Qd2 {[%clk 0:01:57]}  Bf5 {[%clk 0:02:46]} 9. Bxe7 {[%clk 0:01:52]}  Bxe7 {[%clk 0:02:43]} 10. Be2 {[%clk 0:01:52]}  Nd7 {[%clk 0:02:43]} 11. O-O {[%clk 0:01:52]}  O-O {[%clk 0:02:42]} 12. Rfc1 {[%clk 0:01:51]}  h6 {[%clk 0:02:40]} 13. Na4 {[%clk 0:01:50]}  Qb4 {[%clk 0:02:33]} 14. Qxb4 {[%clk 0:01:47]}  Bxb4 {[%clk 0:02:33]} 15. a3 {[%clk 0:01:47]}  Bd6 {[%clk 0:02:31]} 16. b4 {[%clk 0:01:47]}  Rfc8 {[%clk 0:02:09]} 17. Nc5 {[%clk 0:01:46]}  Rab8 {[%clk 0:01:57]} 18. Rc3 {[%clk 0:01:39]}  Nb6 {[%clk 0:01:51]} 19. Rac1 {[%clk 0:01:31]}  Rc7 {[%clk 0:01:47]} 20. Bd3 {[%clk 0:01:27]}  Bxd3 {[%clk 0:01:42]} 21. Rxd3 {[%clk 0:01:22]}  Nc4 {[%clk 0:01:41]} 22. Nd2 {[%clk 0:01:21]}  Nxd2 {[%clk 0:01:20]} 23. Rxd2 {[%clk 0:01:21]}  Re8 {[%clk 0:01:20]} 24. Rdc2 {[%clk 0:01:18]}  Bxc5 {[%clk 0:01:17]} 25. bxc5 {[%clk 0:01:16]}  f5 {[%clk 0:01:14]} 26. Rb1 {[%clk 0:00:59]}  Ree7 {[%clk 0:01:13]} 27. Rcb2 {[%clk 0:00:58]}  Kf7 {[%clk 0:01:13]} 28. Rb3 {[%clk 0:00:58]}  Kf6 {[%clk 0:01:12]} 29. f3 {[%clk 0:00:57]}  g5 {[%clk 0:01:12]} 30. Kf2 {[%clk 0:00:56]}  Rcd7 {[%clk 0:01:05]} 31. a4 {[%clk 0:00:55]}  a5 {[%clk 0:00:55]} 32. Rh1 {[%clk 0:00:48]}  f4 {[%clk 0:00:52]} 33. h4 {[%clk 0:00:42]}  Kf5 {[%clk 0:00:42]} 34. hxg5 {[%clk 0:00:41]}  hxg5 {[%clk 0:00:41]} 35. Rh8 {[%clk 0:00:41]}  fxe3+ {[%clk 0:00:37]} 36. Rxe3 {[%clk 0:00:40]}  Rxe3 {[%clk 0:00:33]} 37. Kxe3 {[%clk 0:00:39]}  Re7+ {[%clk 0:00:33]} 38. Kf2 {[%clk 0:00:39]}  g4 {[%clk 0:00:20]} 39. Rf8+ {[%clk 0:00:39]}  Kg5 {[%clk 0:00:14]} 40. Rg8+ {[%clk 0:00:38]}  Kf5 {[%clk 0:00:13]} 41. Rxg4 {[%clk 0:00:38]}  b6 {[%clk 0:00:09]} 42. Rg8 {[%clk 0:00:27]}  bxc5 {[%clk 0:00:08]} 43. dxc5 {[%clk 0:00:28]}  Rb7 {[%clk 0:00:07]} 44. Rf8+ {[%clk 0:00:26]}  Ke5 {[%clk 0:00:06]} 45. g4 {[%clk 0:00:22]}  d4 {[%clk 0:00:04]} 46. g5 {[%clk 0:00:17]}  Rb2+ {[%clk 0:00:02]} 47. Ke1 {[%clk 0:00:17]}  d3 {[%clk 0:00:00]} 48. g6 {[%clk 0:00:16]} 1-0


[Site "https://www.chess.com"]

[Event "Titled Tuesday Blitz May 9 Late 2023"]
[White "Boder, Jan"]
[Black "Van Baar, Esper"]
[WhiteFideId "16243226"]
[BlackFideId "1049321"]
[WhiteElo "2241"]
[BlackElo "2174"]
[Result "1-0"]
[Round "07"]
[TimeControl "180+2"]
[Date "2023.05.09"]
[WhiteClock "0:01:07"]
[BlackClock "0:00:30"]

1. c4 {[%clk 0:03:00]}  c5 {[%clk 0:02:56]} 2. g3 {[%clk 0:03:00]}  g6 {[%clk 0:02:56]} 3. Bg2 {[%clk 0:02:50]}  Bg7 {[%clk 0:02:57]} 4. Nc3 {[%clk 0:02:36]}  Nc6 {[%clk 0:02:57]} 5. a3 {[%clk 0:02:35]}  d6 {[%clk 0:02:54]} 6. Rb1 {[%clk 0:02:33]}  a5 {[%clk 0:02:50]} 7. e4 {[%clk 0:02:32]}  e5 {[%clk 0:02:48]} 8. d3 {[%clk 0:02:32]}  Nge7 {[%clk 0:02:48]} 9. Nge2 {[%clk 0:02:32]}  Be6 {[%clk 0:02:48]} 10. O-O {[%clk 0:02:30]}  O-O {[%clk 0:02:47]} 11. Nd5 {[%clk 0:02:26]}  Bxd5 {[%clk 0:02:32]} 12. cxd5 {[%clk 0:02:22]}  Nd4 {[%clk 0:02:33]} 13. b4 {[%clk 0:02:20]}  axb4 {[%clk 0:02:28]} 14. axb4 {[%clk 0:02:21]}  b6 {[%clk 0:02:29]} 15. Nxd4 {[%clk 0:02:12]}  cxd4 {[%clk 0:02:01]} 16. Qb3 {[%clk 0:01:59]}  b5 {[%clk 0:01:57]} 17. Bd2 {[%clk 0:01:57]}  Qd7 {[%clk 0:01:47]} 18. Rfc1 {[%clk 0:01:49]}  Rfc8 {[%clk 0:01:47]} 19. h4 {[%clk 0:01:36]}  h5 {[%clk 0:01:45]} 20. Kh2 {[%clk 0:01:35]}  Qa7 {[%clk 0:00:55]} 21. Bh3 {[%clk 0:01:33]}  Rxc1 {[%clk 0:00:52]} 22. Rxc1 {[%clk 0:01:27]}  Qa2 {[%clk 0:00:46]} 23. Qc2 {[%clk 0:01:13]}  Nf5 {[%clk 0:00:30]} 24. exf5 {[%clk 0:01:07]} 1-0


[Site "https://www.chess.com"]

[Event "Titled Tuesday Blitz May 9 Late 2023"]
[White "Mirzoev, Azer"]
[Black "Horokoskii"]
[WhiteFideId "13400304"]
[WhiteElo "2525"]
[BlackElo "2102"]
[Result "1-0"]
[Round "07"]
[TimeControl "180+2"]
[Date "2023.05.09"]
[WhiteClock "0:01:00"]
[BlackClock "0:00:00"]

1. c4 {[%clk 0:02:59]}  Nf6 {[%clk 0:02:57]} 2. Nc3 {[%clk 0:02:58]}  g6 {[%clk 0:02:57]} 3. e4 {[%clk 0:02:57]}  d6 {[%clk 0:02:56]} 4. d4 {[%clk 0:02:57]}  Bg7 {[%clk 0:02:56]} 5. f3 {[%clk 0:02:49]}  O-O {[%clk 0:02:43]} 6. Bg5 {[%clk 0:02:48]}  c5 {[%clk 0:02:42]} 7. d5 {[%clk 0:02:47]}  b5 {[%clk 0:02:38]} 8. Nxb5 {[%clk 0:02:41]}  Qa5+ {[%clk 0:02:26]} 9. Nc3 {[%clk 0:02:37]}  Nbd7 {[%clk 0:02:23]} 10. Qd2 {[%clk 0:02:24]}  Re8 {[%clk 0:01:56]} 11. Rc1 {[%clk 0:02:23]}  Rb8 {[%clk 0:01:38]} 12. Nh3 {[%clk 0:02:18]}  Ba6 {[%clk 0:01:10]} 13. Nf2 {[%clk 0:02:14]}  Ne5 {[%clk 0:01:07]} 14. b3 {[%clk 0:02:13]}  e6 {[%clk 0:01:05]} 15. dxe6 {[%clk 0:02:07]}  Rxe6 {[%clk 0:01:05]} 16. Be2 {[%clk 0:02:07]}  Nc6 {[%clk 0:01:00]} 17. Nd5 {[%clk 0:02:04]}  Qd8 {[%clk 0:00:47]} 18. O-O {[%clk 0:01:57]}  Nd4 {[%clk 0:00:47]} 19. Rfe1 {[%clk 0:01:53]}  Qd7 {[%clk 0:00:37]} 20. Nxf6+ {[%clk 0:01:48]}  Bxf6 {[%clk 0:00:36]} 21. Bxf6 {[%clk 0:01:48]}  Rxf6 {[%clk 0:00:36]} 22. Ng4 {[%clk 0:01:47]}  Re6 {[%clk 0:00:34]} 23. Bf1 {[%clk 0:01:43]}  Rbe8 {[%clk 0:00:30]} 24. Ne3 {[%clk 0:01:36]}  Bb7 {[%clk 0:00:27]} 25. Nc2 {[%clk 0:01:35]}  Nxc2 {[%clk 0:00:16]} 26. Qxc2 {[%clk 0:01:32]}  f5 {[%clk 0:00:15]} 27. Bd3 {[%clk 0:01:30]}  fxe4 {[%clk 0:00:14]} 28. Bxe4 {[%clk 0:01:27]}  Bxe4 {[%clk 0:00:14]} 29. Rxe4 {[%clk 0:01:26]}  Rxe4 {[%clk 0:00:13]} 30. fxe4 {[%clk 0:01:27]}  Qg7 {[%clk 0:00:13]} 31. Qd3 {[%clk 0:01:25]}  Qe5 {[%clk 0:00:13]} 32. Re1 {[%clk 0:01:16]}  Re6 {[%clk 0:00:12]} 33. h3 {[%clk 0:01:12]}  Qb2 {[%clk 0:00:12]} 34. Re2 {[%clk 0:01:11]}  Qc1+ {[%clk 0:00:11]} 35. Kh2 {[%clk 0:01:10]}  Qf4+ {[%clk 0:00:11]} 36. Qg3 {[%clk 0:01:07]}  Rxe4 {[%clk 0:00:07]} 37. Rxe4 {[%clk 0:01:05]}  Qxe4 {[%clk 0:00:07]} 38. Qxd6 {[%clk 0:01:05]}  Qe3 {[%clk 0:00:03]} 39. Qb8+ {[%clk 0:01:03]}  Kg7 {[%clk 0:00:03]} 40. Qxa7+ {[%clk 0:01:03]}  Kh6 {[%clk 0:00:03]} 41. Qc7 {[%clk 0:01:01]}  Qf2 {[%clk 0:00:00]} 42. a4 {[%clk 0:01:00]} 1-0


[Site "https://www.chess.com"]

[Event "Titled Tuesday Blitz May 9 Late 2023"]
[White "Stachanczyk, Jacek"]
[Black "Dargan, Paul A G"]
[WhiteFideId "1116657"]
[BlackFideId "416762"]
[WhiteElo "2084"]
[BlackElo "2042"]
[Result "0-1"]
[Round "07"]
[TimeControl "180+2"]
[Date "2023.05.09"]
[WhiteClock "0:01:23"]
[BlackClock "0:02:22"]

1. e4 {[%clk 0:02:59]}  c5 {[%clk 0:02:59]} 2. Nf3 {[%clk 0:02:58]}  g6 {[%clk 0:02:58]} 3. d4 {[%clk 0:02:57]}  cxd4 {[%clk 0:02:59]} 4. Nxd4 {[%clk 0:02:58]}  Bg7 {[%clk 0:02:59]} 5. c4 {[%clk 0:02:58]}  Nc6 {[%clk 0:02:59]} 6. Be3 {[%clk 0:02:58]}  d6 {[%clk 0:02:55]} 7. Nc3 {[%clk 0:02:58]}  Nf6 {[%clk 0:02:56]} 8. f3 {[%clk 0:02:54]}  O-O {[%clk 0:02:55]} 9. Be2 {[%clk 0:02:40]}  Nxd4 {[%clk 0:02:53]} 10. Bxd4 {[%clk 0:02:32]}  Be6 {[%clk 0:02:54]} 11. Qd2 {[%clk 0:02:29]}  Qa5 {[%clk 0:02:50]} 12. a3 {[%clk 0:02:21]}  Rfc8 {[%clk 0:02:50]} 13. b4 {[%clk 0:02:17]}  Qh5 {[%clk 0:02:48]} 14. O-O {[%clk 0:01:57]}  Bxc4 {[%clk 0:02:44]} 15. Rac1 {[%clk 0:01:52]}  Bxe2 {[%clk 0:02:39]} 16. Nxe2 {[%clk 0:01:53]}  Nd7 {[%clk 0:02:36]} 17. Bxg7 {[%clk 0:01:51]}  Kxg7 {[%clk 0:02:35]} 18. Qd4+ {[%clk 0:01:51]}  Qe5 {[%clk 0:02:34]} 19. Qxe5+ {[%clk 0:01:50]}  Nxe5 {[%clk 0:02:34]} 20. Nd4 {[%clk 0:01:23]}  Nd3 {[%clk 0:02:22]} 0-1


[Site "https://www.chess.com"]

[Event "Titled Tuesday Blitz May 9 Late 2023"]
[White "Prohorov, Olexandr"]
[Black "tandercat"]
[WhiteFideId "14105578"]
[WhiteElo "1966"]
[BlackElo "2001"]
[Result "1-0"]
[Round "07"]
[TimeControl "180+2"]
[Date "2023.05.09"]
[WhiteClock "0:01:35"]
[BlackClock "0:00:08"]

1. e4 {[%clk 0:03:00]}  c5 {[%clk 0:02:59]} 2. c3 {[%clk 0:02:55]}  Nf6 {[%clk 0:02:58]} 3. e5 {[%clk 0:02:48]}  Nd5 {[%clk 0:02:58]} 4. Nf3 {[%clk 0:02:49]}  Nc6 {[%clk 0:02:56]} 5. Bc4 {[%clk 0:02:50]}  Nb6 {[%clk 0:02:56]} 6. Bb3 {[%clk 0:02:39]}  d5 {[%clk 0:02:55]} 7. exd6 {[%clk 0:02:38]}  Qxd6 {[%clk 0:02:54]} 8. a4 {[%clk 0:02:34]}  c4 {[%clk 0:02:26]} 9. Bc2 {[%clk 0:02:33]}  Bg4 {[%clk 0:02:19]} 10. a5 {[%clk 0:02:24]}  Nd7 {[%clk 0:02:05]} 11. a6 {[%clk 0:02:20]}  b6 {[%clk 0:01:38]} 12. Na3 {[%clk 0:02:19]}  Nde5 {[%clk 0:01:35]} 13. Nb5 {[%clk 0:02:12]}  Qd7 {[%clk 0:01:11]} 14. Qe2 {[%clk 0:02:01]}  Bxf3 {[%clk 0:00:28]} 15. gxf3 {[%clk 0:02:02]}  Nd3+ {[%clk 0:00:16]} 16. Bxd3 {[%clk 0:01:48]}  cxd3 {[%clk 0:00:17]} 17. Qe4 {[%clk 0:01:48]}  O-O-O {[%clk 0:00:15]} 18. Nxa7+ {[%clk 0:01:39]}  Nxa7 {[%clk 0:00:13]} 19. Qa8+ {[%clk 0:01:39]}  Kc7 {[%clk 0:00:13]} 20. Qxa7+ {[%clk 0:01:39]}  Kd6 {[%clk 0:00:13]} 21. Qxb6+ {[%clk 0:01:39]}  Ke5 {[%clk 0:00:13]} 22. Qe3+ {[%clk 0:01:37]}  Kf6 {[%clk 0:00:11]} 23. a7 {[%clk 0:01:36]}  Ra8 {[%clk 0:00:10]} 24. Ra6+ {[%clk 0:01:35]}  e6 {[%clk 0:00:10]} 25. Rg1 {[%clk 0:01:36]}  Bd6 {[%clk 0:00:08]} 26. Qg5# {[%clk 0:01:35]} 1-0


[Site "https://www.chess.com"]